Cogmind - Beta 13 X1 @@@ ROGUE MODE // 2023.09.22 @ 00:25:39 Player: Cracklepappy Result: Destroyed by CU-JRH(R) with Subdweller Machine Gun Performance ------------- Evolutions (0) 0 Regions Visited (3) 600 Robots Destroyed (56) 280 Value Destroyed (1466) 1466 Prototype IDs (2) 40 Alien Tech Used (0) 0 Bonus (0) 0 TOTAL SCORE: 2386 Bonus ------- None Cogmind --------- Core Integrity 0/250 Matter 254/300 Energy 200/200 System Corruption 7% Temperature Cool (0) Movement Treading (260) Ox1 Location -10/Subcaves Parts ------- > --- POWER (1) -------- Subdweller Power Source > --- PROPULSION (2) --- Spiked Treads Aluminum Leg > --- UTILITY (2) ------ Scrap Shield > --- WEAPON (2) ------- Beamcaster Barrage Gun > --- INVENTORY (5) ---- Battle Rifle Grenade Launcher Grenade Launcher Dirty Datajack (20) Peak State ------------ > --- POWER ------------ Subdweller Power Source > --- PROPULSION ------- Light Treads Spiked Treads > --- UTILITY ---------- Huge Storage Unit Makeshift Armor Plating > --- WEAPON ----------- Great Maul Makeshift Sword > --- INVENTORY -------- Aluminum Leg Subdweller Monowheel Heat Sink High-capacity Storage Unit High-capacity Matter Pod Scrap Shield Long-range Tractor Beam Improved Trap Extractor Spread Laser Spread Laser Beamcaster Light EM Pulse Cannon Light EM Pulse Cannon Light EM Pulse Cannon Subdweller Beam Cannon Subdweller Beam Cannon Battle Rifle Barrage Gun Grenade Launcher Grenade Launcher Grenade Launcher Subdweller Shrapnel Launcher Mining Laser [Rating: 21] Favorites ----------- Power Light Nuclear Core Engine Subdweller Power Source Power Core Light Nuclear Core Propulsion Light Treads Treads Light Treads Leg Aluminum Leg Wheel Wheel Utility Huge Storage Unit Device Seismic Detector Storage Huge Storage Unit Protection Propulsion Shielding Weapon Light EM Pulse Cannon Energy Gun Spread Laser Energy Cannon Light EM Pulse Cannon Ballistic Gun Light Assault Rifle Launcher Grenade Launcher Impact Weapon Great Maul Slashing Weapon Makeshift Sword Build | -11 -10 -10 -10 ------- Run | Jun Mat Min Sub Slots Evolved . | . . . . Power . | . . . . Propulsion . | . . . . Utility . | . . . . Weapon . | . . . . Parts Attached 70 | 9 17 9 35 Power 10 | 1 3 2 4 Engine 6 | 1 2 1 2 Core 4 | . 1 1 2 Reactor . | . . . . Propulsion 14 | 3 6 . 5 Treads 10 | 2 6 . 2 Leg 3 | . . . 3 Wheel 1 | 1 . . . Hover . | . . . . Flight . | . . . . Utility 11 | 3 4 . 4 Device 4 | 2 1 . 1 Storage 4 | 1 2 . 1 Processor . | . . . . Hackware . | . . . . Protection 3 | . 1 . 2 Artifact . | . . . . Weapon 35 | 2 4 7 22 Energy Gun 15 | . 2 . 13 Energy Cannon 9 | . 2 5 2 Ballistic Gun 3 | 2 . . 1 Ballistic Cannon . | . . . . Launcher 3 | . . 2 1 Special Weapon . | . . . . Impact Weapon 4 | . . . 4 Slashing Weapon 1 | . . . 1 Piercing Weapon . | . . . . Special Melee Weapon . | . . . . Unidentified Prototypes . | . . . . Corrupted Parts 2 | . . 1 1 System Corruption 7 | . . 6 1 Parts Lost 18 | . 5 1 12 Power 5 | . 1 1 3 Propulsion 6 | . 2 . 4 Utility 1 | . . . 1 Weapon 6 | . 2 . 4 Highest Loss Streak 4 | . 3 1 4 To Critical Strikes . | . . . . Average Slot Usage (%) 99 | . 99 100 98 Engine 3 | . 3 2 5 Core 10 | . 10 11 8 Treads 25 | . 27 28 22 Leg 2 | . . . 4 Device 2 | . 8 . . Storage 16 | . 14 14 19 Protection 8 | . 5 14 8 Energy Gun 12 | . 1 . 23 Energy Cannon 13 | . 22 27 3 Ballistic Gun 1 | . 4 . . Naked Turns . | . . . . Heaviest Build 100 | 13 94 94 100 Greatest Support 40 | 40 40 40 40 Greatest Overweight (x) 4 | 1 2 2 4 Average Overweight (x) 2 | . 1 2 2 Largest Inventory Capacity 25 | 8 25 25 25 Average Capacity 24 | 7 23 25 24 Most Carried 25 | 8 25 25 25 Average Carried 22 | 5 21 24 23 Final Capacity 25 | 8 25 25 5 Final Carried 25 | 8 25 25 4 Class Distribution -------------------- 90% | Mutant 6% | Subdweller-Mutant Dominant Class ---------------- Mutant | -10/Materials Mutant | -10/Mines Mutant | -10/Subcaves Resources | -11 -10 -10 -10 ----------- Run | Jun Mat Min Sub Matter Collected 1531 | 326 444 180 581 Remotely . | . . . . Salvage Created 1627 | 95 833 124 575 Parts 94 | 5 46 18 25 Haulers Intercepted 2 | . 2 . . Recyclers Shooed 1 | . 1 . . Parts Field Recycled . | . . . . Retrieved Matter . | . . . . Parts Self-Destructed 6 | . . . 6 Prevented . | . . . . Kills | -11 -10 -10 -10 ------- Run | Jun Mat Min Sub Combat Hostiles Destroyed 40 | . 11 8 21 Guns 23 | . 8 . 15 Cannons 3 | . 1 1 1 AOE 9 | . . 6 3 Classes Destroyed 12 | 2 5 1 4 Worker 2 | . 1 1 . Tunneler 3 | 2 1 . . Hauler 2 | . 2 . . Recycler 3 | 1 2 . . Operator 2 | . 2 . . Turret 2 | . . . 2 Watcher 2 | . 2 . . Swarmer 10 | . . 6 4 Grunt 16 | . 11 2 3 Sentry 1 | . . . 1 Artisan 1 | . . . 1 Subdweller 13 | . . . 13 Best Kill Streak 6 | 2 6 4 5 Combat Bots Only 5 | . 5 3 4 Max Kills in Single Turn 3 | 1 1 3 1 Gunslinging . | . . . . Exploded 3 | . . 3 1 Melee . | . . . . Uniques/NPCs Destroyed . | . . . . Combat | -11 -10 -10 -10 -------- Run | Jun Mat Min Sub Damage Taken 2425 | . 684 224 1517 Core 274 | . 75 37 162 Absorbed by Shields . | . . . . Redirected to Shielding 50 | . . 13 37 Regen/Repaired (Parts) 128 | . 128 . . Core Remaining (%) 100 | 100 . . . Volleys Fired 164 | 23 62 11 68 Largest 2 | 2 2 2 2 Hottest 140 | 40 112 112 140 Shots Fired 305 | 46 122 13 124 Gun 241 | 46 100 . 95 Cannon 53 | . 22 7 24 Launcher 11 | . . 6 5 Special . | . . . . Kinetic 147 | 46 92 . 9 Thermal 104 | . 8 . 96 Explosive 6 | . . 6 . Electromagnetic 48 | . 22 7 19 Robot Hit Streak 19 | 7 19 3 18 Robot Miss Streak 4 | 3 2 1 4 Penetration Max . | . . . . Secondary Targets 2 | . 1 . 1 Max Gunslinging Chain 1 | . 1 . 1 Shots Hit Robots 219 | 30 92 5 92 Core Hits 143 | 8 41 8 86 Critical Kills . | . . . . Critical Parts Destroyed . | . . . . Critical Strikes 1 | . 1 . . Corrupt 1 | . 1 . . Melee Attacks 23 | . . . 23 Impact 23 | . . . 23 Slashing . | . . . . Piercing . | . . . . Sneak Attacks . | . . . . Combat Hostiles . | . . . . Follow-up Attacks . | . . . . Damage Inflicted 3704 | 238 1071 581 1814 Guns 1952 | 238 630 . 1084 Cannons 771 | . 328 118 325 Explosions 906 | . 47 454 405 Melee . | . . . . Ramming 75 | . 66 9 . Kinetic 1237 | 238 558 . 441 Thermal 1167 | . 119 . 1048 Explosive 454 | . . 454 . Electromagnetic 771 | . 328 118 325 Impact . | . . . . Slashing . | . . . . Piercing . | . . . . Highest Corruption 7 | . . 6 7 Average Corruption 6 | . . 6 6 Corruption Purged . | . . . . Corruption Blocked . | . . . . Effects 234 | . . 54 180 Message Errors 60 | . . 14 46 Matter Fused 52 | . . 14 38 Heat Flow Errors 31 | . . 8 23 Energy Discharges 33 | . . 7 26 Parts Fused 3 | . . 1 2 Data Loss (minor) 27 | . . 4 23 Data Loss (major) 12 | . . 3 9 Misfires 7 | . . . 7 Alerts 7 | . . 3 4 Weapon Failures 2 | . . . 2 Overload Shots . | . . . . Overflow Damage 109 | . . 79 30 Projectiles . | . . . . Explosions 109 | . . 79 30 Melee . | . . . . Knockbacks 1 | . 1 . . Impact 1 | . 1 . . Kinetic . | . . . . Secondary . | . . . . Self-Inflicted Damage 130 | . 9 69 52 Shots 5 | . 1 2 2 Rammed 7 | . 5 2 . Targets Rammed 7 | . 5 2 . Kicked . | . . . . Crushed . | . . . . Highest Temperature 253 | . 199 253 253 Average Temperature 64 | . 44 88 64 Received Heat Transfer 741 | . 396 48 297 Effects 2 | . . . 2 Energy Bleed 1 | . . . 1 Interference 1 | . . . 1 Siege Activations . | . . . . Robots Corrupted 5 | . 2 1 2 Combat Hostiles 5 | . 2 1 2 Parts Fried 8 | . 4 . 4 Impact Corruptions . | . . . . Robots Melted . | . . . . Combat Hostiles . | . . . . Parts Melted 1 | . 1 . . Heat Transferred 1623 | . 248 . 1375 Parts Sabotaged . | . . . . Parts Stolen . | . . . . Parts Stripped . | . . . . Power Chain Reactions 2 | . 2 . . Missiles Intercepted . | . . . . Alert | -11 -10 -10 -10 ------- Run | Jun Mat Min Sub Peak Influence 154 | 15 133 154 . Initial 9 | . 9 . . Average 25 | 6 27 24 . Maximum Alert Level . | . . . . Low Security (%) 100 | 100 100 100 . Level 1 . | . . . . Level 2 . | . . . . Level 3 . | . . . . Level 4 . | . . . . Level 5 . | . . . . High Security . | . . . . Max Security . | . . . . Squads Dispatched 3 | . 3 . . Investigation 1 | . 1 . . Extermination . | . . . . Reinforcement 2 | . 2 . . Assault . | . . . . Garrison . | . . . . Intercept . | . . . . Searches Triggered . | . . . . Construction Impeded . | . . . . Haulers Reinforced . | . . . . Active Scanning Responses . | . . . . Cargo Convoy Interrupts . | . . . . Stealth | -11 -10 -10 -10 --------- Run | Jun Mat Min Sub Distress Signals . | . . . . Communications Jammed . | . . . . Distress Signals . | . . . . Times Spotted 82 | . 19 8 55 Peak Tracking Total 4 | . 3 3 4 Tactical Retreats 6 | . . . 6 Traps | -11 -10 -10 -10 ------- Run | Jun Mat Min Sub Traps Triggered 3 | . 3 . . Indirectly . | . . . . Trap Hack Attempts . | . . . . Triggered . | . . . . Disarmed . | . . . . Reprogrammed . | . . . . Reused . | . . . . Traps Extracted . | . . . . Installed . | . . . . Triggered . | . . . . Machines | -11 -10 -10 -10 ---------- Run | Jun Mat Min Sub Machines Disabled 6 | . . 1 5 Max in Single Turn 3 | . . 1 3 Machines Repaired . | . . . . Machines Sabotaged . | . . . . Overloaded Fab Kills . | . . . . Hacking | -11 -10 -10 -10 --------- Run | Jun Mat Min Sub Machines Accessed 8 | . 6 1 1 Terminals 4 | . 4 . . Fabricators . | . . . . Repair Stations 1 | . 1 . . Recycling Units 1 | . 1 . . Scanalyzers . | . . . . Garrison Access . | . . . . Total Hacks 19 | . 16 1 2 Successful 9 | . 6 1 2 Failed 10 | . 10 . . Catastrophic . | . . . . Database Lockouts . | . . . . Manual 5 | . 5 . . Terminals 10 | . 10 . . Fabricators . | . . . . Repair Stations 3 | . 3 . . Recycling Units 3 | . 3 . . Scanalyzers . | . . . . Garrison Access . | . . . . Terminal Hacks 7 | . 4 1 2 Record 2 | . . . 2 Part Schematic 2 | . 2 . . Robot Analysis 1 | . 1 . . Prototype ID Bank 1 | . 1 . . Open Door 1 | . . 1 . Fabricator Hacks . | . . . . Repair Station Hacks 2 | . 2 . . Scan Component 1 | . 1 . . Repair 1 | . 1 . . Recycling Unit Hacks . | . . . . Scanalyzer . | . . . . Garrison Access Hacks . | . . . . Unauthorized Hacks . | . . . . Terminals . | . . . . Fabricators . | . . . . Repair Stations . | . . . . Recycling Units . | . . . . Scanalyzers . | . . . . Garrison Access . | . . . . Data Cores Recovered . | . . . . Used . | . . . . Hacking Detections 5 | . 5 . . Full Trace Events . | . . . . Feedback Events . | . . . . Feedback Blocked . | . . . . Robot Schematics Acquired . | . . . . Robots Built . | . . . . Authchips . | . . . . Time . | . . . . Total Robot Build Rating . | . . . . Part Schematics Acquired 2 | . 2 . . Parts Built . | . . . . Authchips . | . . . . Time . | . . . . Total Part Build Rating . | . . . . Parts Repaired 1 | . 1 . . Time 26 | . 26 . . Parts Recycled . | . . . . Recycled Matter . | . . . . Retrieved Matter . | . . . . Retrieved Components . | . . . . Parts Scanalyzed . | . . . . Part Schematics Acquired . | . . . . Parts Damaged . | . . . . Bothacking | -11 -10 -10 -10 ------------ Run | Jun Mat Min Sub Used RIF Installer . | . . . . Robots Hacked . | . . . . Non-combat . | . . . . Combat . | . . . . Robot Hacks Applied . | . . . . Relay Couplers Released . | . . . . Fabnet Peak Effective % . | . . . . Robots Rewired . | . . . . Allies Hacked . | . . . . Hacks Repelled . | . . . . Allies | -11 -10 -10 -10 -------- Run | Jun Mat Min Sub Total Allies . | . . . . Largest Group . | . . . . Highest-Rated Group . | . . . . Highest-Rated Ally . | . . . . Total Orders . | . . . . Ally Attacks . | . . . . Total Damage . | . . . . Kills . | . . . . Allies Corrupted . | . . . . Allies Melted . | . . . . Intel | -11 -10 -10 -10 ------- Run | Jun Mat Min Sub Robot Analysis Total 1 | . 1 . . Derelict Logs Recovered 3 | . . 1 2 Drone Launches . | . . . . Drone Recoveries . | . . . . Exploration | -11 -10 -10 -10 ------------- Run | Jun Mat Min Sub Turns Passed 11908 | 252 3425 2292 5939 Spaces Moved 3400 | 185 1049 684 1482 Core 3 | 3 . . . Treads 3216 | 1 1049 684 1482 Legs . | . . . . Wheels 181 | 181 . . . Hover . | . . . . Flight . | . . . . Fastest Speed 50 | 50 160 320 160 Average Speed 323 | 93 296 320 373 Slowest Speed 560 | 160 320 320 560 Overloaded Moves . | . . . . Propulsion Burnouts . | . . . . Robots Hopped . | . . . . Cave-ins Triggered . | . . . . Exploration Rate (%) 71 | 7 96 99 84 Regions Visited 3 Branch Regions 2 Pre-discovered Areas 1 | . . . 1 Known Exits Taken . | . . . . Unknown Exits Taken 3 | 1 1 1 . Scrap Searched 7 | . . 3 4 Spaces Dug 11 | . . . 11 Terrain Destroyed 114 | . 5 46 63 Melee 11 | . . . 11 Projectile . | . . . . AOE 103 | . 5 46 52 Terrain Rammed . | . . . . Walls Destroyed . | . . . . Machines Disabled . | . . . . Actions | -11 -10 -10 -10 --------- Run | Jun Mat Min Sub Total 3975 | 224 1257 775 1719 Wait 190 | . 75 50 65 Move 3397 | 184 1048 683 1482 Hop . | . . . . Pick Up 68 | 8 34 10 16 Fast Attach 20 | 7 9 . 4 Attach 18 | . 5 2 11 Detach . | . . . . Swap 32 | 2 3 7 20 Drop 56 | . 16 10 30 Fire 164 | 23 62 11 68 Melee 23 | . . . 23 Ram . | . . . . Kick . | . . . . Crush 7 | . 5 2 . Escape Stasis . | . . . . Rewire . | . . . . Trap . | . . . . Miscellaneous . | . . . . Route ------- -11/Junkyard -10/Materials (discovered 6 exits: [*Mat x3] / *Min x2 / *Sub) -10/Mines (discovered 3 exits: [*Mat x2] / *Sub) -10/Subcaves (discovered 3 exits: [*Mat x2] / [*Rec]) History --------- Turn | Location | Event 12 | -11/Junkyard | Discovered new exit (range 15) 253 | -11/Junkyard | Entered Materials 352 | -10/Materials | Build established: Mutant 354 | -10/Materials | Discovered new exit (range 15) 779 | -10/Materials | Lost 3 parts (1p2w) 1022 | -10/Materials | Discovered new exit (range 6) 1321 | -10/Materials | Discovered new exit (range 16) 1595 | -10/Materials | Discovered new exit (range 16) 2138 | -10/Materials | Discovered new exit (range 16) 2594 | -10/Materials | Discovered new exit (range 13) 2998 | -10/Materials | Repaired Lgt. Treads 3678 | -10/Materials | Entered Mines 3924 | -10/Mines | Discovered new exit (range 5) 4833 | -10/Mines | Learned Materials stockpile data 5076 | -10/Mines | Met a Derelict who couldn't figure out how to use a Trap Extractor 5426 | -10/Mines | Discovered new exit (range 6) 5436 | -10/Mines | Discovered new exit (range 15) 5970 | -10/Mines | Entered Subcaves 7009 | -10/Subcaves | Discovered new exit (range 12) 8774 | -10/Subcaves | Discovered new exit (range 13) 9059 | -10/Subcaves | Core integrity fell below 50% 9103 | -10/Subcaves | Lost 4 parts (1p2n1w) 9939 | -10/Subcaves | Shifting Twisted Machinery released Unknown Slashing Weapon 10011 | -10/Subcaves | Shifting Twisted Machinery released Scrap Shield 10303 | -10/Subcaves | Ambushed by Subdweller buried in earth 10610 | -10/Subcaves | Build established: Subdweller-Mutant 10946 | -10/Subcaves | A swath of the cavern ceiling suddenly collapsed 11065 | -10/Subcaves | Shifting Twisted Machinery released Battle Rifle 11202 | -10/Subcaves | Visited Clippyterm 11434 | -10/Subcaves | Build established: Mutant 11442 | -10/Subcaves | Core integrity fell below 20% 11613 | -10/Subcaves | Discovered new exit (range 12) 11848 | -10/Subcaves | Build established: Derelict-Mutant 11885 | -10/Subcaves | A Subdweller sparked back to life 11885 | -10/Subcaves | A Subdweller sparked back to life 11885 | -10/Subcaves | A Subdweller sparked back to life 11909 | -10/Subcaves | Destroyed by CU-JRH(R) with Subdweller Machine Gun Last Messages --------------- 11826_ Dropped Lrn. Tractor Beam. 11827_ Dropped Hcp. Matter Pod. 11827_ Extracted 12 matter. 11839_ System corrupted: Energy discharge (-76). 11849_ Dropped Great Maul. 11859_ System corrupted: Matter fused (-6). 11861_ Dropped Mak. Sword. 11862_ Dropped Sub. Monowheel. 11862_ Dropped Mak. Armor Plating. 11863_ Dropped Huge Storage Unit. 11868_ Acquired Scrap Shield. 11885_ RK-XBF(R) creaks and sparks as it begins to move. 11885_ CU-JRH(R) creaks and sparks as it begins to move. 11885_ 8M-4Y7(R) creaks and sparks as it begins to move. 11887_ System corrupted: Matter fused (-9). 11894_ RK-XBF(R) destroyed. 11896_ Spread Laser destroyed. 11901_ 8M-4Y7(R) destroyed. 11904_ 2YBS N EA3QWAYDG3PUATRW QT=%56CP1>I 11906_ CU-JRH(R) affixes Scrap Shield Fragment to Scrap Shield. Map ----- +----------------------------------------------------+ | | | ?????????????????????????????????????????????????? | | ?????????????????????????????????????????????????? | | ?????????????????????????????????????????????????? | | ?????????????????????????????????????????????????? | | ?????????????????????????????????????????????????? | | ?????????????????????????????????????????????????? | | ?????????????????????????????????????????????????? | | ?????????????????????????????????????????????????? | | ?????????????????????????????????????????????????? | | ?????????????????????????????????????????????????? | | ?????????????????????????????????????????????????? | | ?????????????????????????????????????????????????? | | ?????????????????????#####???????????????????????? | | ????????????????????# " ???????????????????????? | | ????????????????????# ##?????????????????????? | | ???????????########?# " ?????????????????????? | | ??###?????## #??&"""& #?????????????????????? | | ??# ####??# #??? " #?????????????????????? | | #?# ##?# ## ##???# ##????????????????????? | | ##### ### ### ##??# ##???????????????????? | | #??# #?## #### < #???????????????????? | | ##?# #??## ## #####???????????????? | | ### ## ##?## ##?# &*= # #???????????????? | | ### ### ##??##%R! #???????????????? | | #?## #???#@![# ##???????????????? | | #??## ##???##* #????????????????? | | ##??## ## ##?????#!! # ###??????????????? | | ######## ! ######?????##/= # ##?????????????? | | #### ##????????## ]"" #?????????????? | | #### #????????#]!!/""#"""##?????????????? | | #?# ##???????#]]]]! ##?????????????? | | #?# ##??????##]!| """""#?????????????? | | ??# ## ##??????##!"""" ###?????????????? | | ??# #?### ##??###### #???????????????? | | ??# ????## " #### ## ##??????????????? | | ??## ??????## " # #"" " #??????????????? | | ???##????????# "" & " "" #?????????????? | | ?????????????## "" & "## #????????????? | | ??????????????##" "### #"### #????????????? | | ???????????????#" ##?#####? ##????????????? | | ??????????????""" ??????? ####?????????????? | | ?????????????""""" ??????# #????????????????? | | ?????????????" """"??????# #????????????????? | | ?????????????##" ""?????? #????????????????? | | ????????????????????????# ##????????????????? | | ???????????????????????? #?????????????????? | | ???????????????????????? ##?????????????????? | | ????????????????????????? #???????????????????? | | ??????????????????????????? #????????????????????? | +----------------------------------------------------+ Best States ------------- Heat Dissipation 25 Coolant Potential 50 Energy Generation 15 Energy Capacity 250 Matter Stores 411 Matter Capacity 500 Sight Range 16 Terrain Scan Range 16 Terrain Scan Density 10 Armor Coverage 800 Propulsion Shielding 33 Evasion (%) 44 Recoil Reduction 2 Item Schematics ----------------- Huge Storage Unit | -10/Materials | Hacked Hcp. Storage Unit | -10/Materials | Hacked Robot Schematics ------------------ None Fabricated ------------ Nothing Alien Tech Used ----------------- None Achievements -------------- None Challenges ------------ None Game ------ Seed TerrabombCannonThruster Manual? 0 Play Time 00:36:05 Cumulative 569.4 hours Start 2023.09.21 @ 23:49:48 End 2023.09.22 @ 00:25:39 Sessions 1 Manual Loads 0 Difficulty Rogue Special Mode None Game No. 390 Rogue 390 Adventurer 0 Explorer 0 Win Type - Total 18 Types 9/3/2/0/0/1/2/1/0 Lore% 82 Gallery% 90 Achievement% 80 Wizard Run 0 Options --------- ASCII 0 Keyboard 0 Movement Numpad Keybinds 0 Fullscreen 1 Font 24/Terminus Map View 76x50 Tactical HUD 1 Map Filters NONE Filters NONE Steam 1 RUN: fc267fb1-27ca-4018-ba0b-1bbd32b46c86